[Event "Titled Tuesday Blitz March 22 Early 2022"]
[White "Ljukin, Sergei"]
[Black "Mikhailovsky, Vladimir"]
[WhiteFideId "14102200"]
[BlackFideId "34105414"]
[WhiteElo "2312"]
[BlackElo "2371"]
[Result "1-0"]
[Round "07"]
[TimeControl "180+1"]
[Date "2022.03.22"]
[WhiteClock "0:00:03"]
[BlackClock "0:00:04"]

1. e4 {[%clk 0:02:54]}  c6 {[%clk 0:02:59]} 2. d4 {[%clk 0:02:54]}  d5 {[%clk 0:02:59]} 3. e5 {[%clk 0:02:54]}  Bf5 {[%clk 0:03:00]} 4. Nd2 {[%clk 0:02:54]}  e6 {[%clk 0:02:59]} 5. Nb3 {[%clk 0:02:55]}  a6 {[%clk 0:02:59]} 6. Nf3 {[%clk 0:02:55]}  c5 {[%clk 0:02:59]} 7. dxc5 {[%clk 0:02:54]}  Bxc5 {[%clk 0:02:58]} 8. Nxc5 {[%clk 0:02:53]}  Qa5+ {[%clk 0:02:58]} 9. c3 {[%clk 0:02:53]}  Qxc5 {[%clk 0:02:59]} 10. Nd4 {[%clk 0:02:53]}  Ne7 {[%clk 0:02:58]} 11. Be3 {[%clk 0:02:51]}  Qc7 {[%clk 0:02:58]} 12. f4 {[%clk 0:02:51]}  Nbc6 {[%clk 0:02:58]} 13. Be2 {[%clk 0:02:50]}  O-O {[%clk 0:02:57]} 14. O-O {[%clk 0:02:49]}  Nxd4 {[%clk 0:02:55]} 15. Qxd4 {[%clk 0:02:43]}  Be4 {[%clk 0:02:51]} 16. Bf3 {[%clk 0:02:32]}  Nf5 {[%clk 0:02:42]} 17. Qb6 {[%clk 0:02:25]}  Rfc8 {[%clk 0:01:54]} 18. Bxe4 {[%clk 0:02:12]}  dxe4 {[%clk 0:01:43]} 19. Qxc7 {[%clk 0:02:11]}  Rxc7 {[%clk 0:01:44]} 20. Rae1 {[%clk 0:02:10]}  h5 {[%clk 0:01:36]} 21. Bc1 {[%clk 0:02:10]}  Rc4 {[%clk 0:01:35]} 22. Re2 {[%clk 0:02:10]}  b5 {[%clk 0:01:30]} 23. Rfe1 {[%clk 0:02:08]}  e3 {[%clk 0:01:30]} 24. g3 {[%clk 0:01:59]}  b4 {[%clk 0:01:26]} 25. cxb4 {[%clk 0:01:59]}  Nd4 {[%clk 0:00:51]} 26. Rxe3 {[%clk 0:01:56]}  Rac8 {[%clk 0:00:52]} 27. Bd2 {[%clk 0:01:30]}  Nc2 {[%clk 0:00:47]} 28. Bc3 {[%clk 0:01:30]}  Nxe1 {[%clk 0:00:42]} 29. Rxe1 {[%clk 0:01:29]}  Rd8 {[%clk 0:00:36]} 30. Kf2 {[%clk 0:01:23]}  Kh7 {[%clk 0:00:36]} 31. h4 {[%clk 0:01:10]}  Kg6 {[%clk 0:00:36]} 32. Re3 {[%clk 0:01:09]}  Kf5 {[%clk 0:00:35]} 33. Kf3 {[%clk 0:01:09]}  Rd1 {[%clk 0:00:33]} 34. a4 {[%clk 0:01:05]}  Rf1+ {[%clk 0:00:26]} 35. Kg2 {[%clk 0:01:00]}  Ra1 {[%clk 0:00:23]} 36. a5 {[%clk 0:00:58]}  Re4 {[%clk 0:00:09]} 37. Rd3 {[%clk 0:00:49]}  Kg4 {[%clk 0:00:09]} 38. Kf2 {[%clk 0:00:48]}  Rh1 {[%clk 0:00:08]} 39. Bd4 {[%clk 0:00:17]}  Rh2+ {[%clk 0:00:07]} 40. Kg1 {[%clk 0:00:17]}  Rc2 {[%clk 0:00:07]} 41. Kf1 {[%clk 0:00:16]}  g6 {[%clk 0:00:05]} 42. b5 {[%clk 0:00:15]}  axb5 {[%clk 0:00:05]} 43. a6 {[%clk 0:00:15]}  Rc1+ {[%clk 0:00:04]} 44. Kf2 {[%clk 0:00:15]}  Ra1 {[%clk 0:00:05]} 45. a7 {[%clk 0:00:14]}  Ra4 {[%clk 0:00:02]} 46. b4 {[%clk 0:00:10]}  Kf5 {[%clk 0:00:01]} 47. Bc5 {[%clk 0:00:10]}  Kg4 {[%clk 0:00:01]} 48. Rd8 {[%clk 0:00:09]}  Rc4 {[%clk 0:00:01]} 49. a8=Q {[%clk 0:00:09]}  Rxa8 {[%clk 0:00:02]} 50. Rxa8 {[%clk 0:00:09]}  Rc2+ {[%clk 0:00:03]} 51. Ke3 {[%clk 0:00:09]}  Kxg3 {[%clk 0:00:03]} 52. Ra7 {[%clk 0:00:09]}  Kxh4 {[%clk 0:00:03]} 53. Rxf7 {[%clk 0:00:09]}  Kg4 {[%clk 0:00:03]} 54. Rf6 {[%clk 0:00:08]}  g5 {[%clk 0:00:03]} 55. Rg6 {[%clk 0:00:07]}  Rc3+ {[%clk 0:00:04]} 56. Kd4 {[%clk 0:00:06]}  Rc4+ {[%clk 0:00:04]} 57. Kd3 {[%clk 0:00:06]}  Rxf4 {[%clk 0:00:04]} 58. Be7 {[%clk 0:00:06]}  Rf5 {[%clk 0:00:04]} 59. Rxe6 {[%clk 0:00:06]}  h4 {[%clk 0:00:05]} 60. Bd6 {[%clk 0:00:06]}  Kh5 {[%clk 0:00:05]} 61. Re8 {[%clk 0:00:05]}  h3 {[%clk 0:00:04]} 62. Rh8+ {[%clk 0:00:06]}  Kg4 {[%clk 0:00:04]} 63. e6 {[%clk 0:00:06]}  Rf6 {[%clk 0:00:05]} 64. Re8 {[%clk 0:00:04]}  Kf3 {[%clk 0:00:05]} 65. Kd4 {[%clk 0:00:04]}  g4 {[%clk 0:00:05]} 66. Ke5 {[%clk 0:00:05]}  Rh6 {[%clk 0:00:05]} 67. e7 {[%clk 0:00:04]}  Rh5+ {[%clk 0:00:05]} 68. Kd4 {[%clk 0:00:04]}  Kg2 {[%clk 0:00:03]} 69. Rg8 {[%clk 0:00:03]}  g3 {[%clk 0:00:04]} 70. Rxg3+ {[%clk 0:00:03]}  Kf2 {[%clk 0:00:04]} 71. e8=Q {[%clk 0:00:03]}  Rh4+ {[%clk 0:00:04]} 72. Kd3 {[%clk 0:00:02]}  h2 {[%clk 0:00:03]} 73. Qe3+ {[%clk 0:00:03]}  Kf1 {[%clk 0:00:04]} 74. Qe2# {[%clk 0:00:03]} 1-0


[Site "https://www.chess.com"]

[Event "Titled Tuesday Blitz March 22 Early 2022"]
[White "Lou, Yiping"]
[Black "Sjugirov, Sanan"]
[WhiteFideId "8603928"]
[BlackFideId "4189302"]
[WhiteElo "2412"]
[BlackElo "2602"]
[Result "0-1"]
[Round "07"]
[TimeControl "180+1"]
[Date "2022.03.22"]
[WhiteClock "0:02:38"]
[BlackClock "0:02:49"]

1. e4 {[%clk 0:03:00]}  e5 {[%clk 0:02:59]} 2. Nf3 {[%clk 0:03:00]}  Nc6 {[%clk 0:02:59]} 3. Bb5 {[%clk 0:02:58]}  a6 {[%clk 0:02:59]} 4. Ba4 {[%clk 0:02:58]}  Nf6 {[%clk 0:03:00]} 5. O-O {[%clk 0:02:58]}  d6 {[%clk 0:03:01]} 6. c3 {[%clk 0:02:48]}  Bd7 {[%clk 0:03:00]} 7. d4 {[%clk 0:02:44]}  g6 {[%clk 0:02:56]} 8. Re1 {[%clk 0:02:40]}  Bg7 {[%clk 0:02:56]} 9. Nbd2 {[%clk 0:02:39]}  O-O {[%clk 0:02:55]} 10. h3 {[%clk 0:02:40]}  Re8 {[%clk 0:02:55]} 11. Bc2 {[%clk 0:02:38]}  a5 {[%clk 0:02:51]} 12. c4 {[%clk 0:02:38]}  Nxd4 {[%clk 0:02:49]} 0-1


[Site "https://www.chess.com"]

[Event "Titled Tuesday Blitz March 22 Early 2022"]
[White "Manukian, Artak"]
[Black "Bachmann, Axel"]
[WhiteFideId "13301373"]
[BlackFideId "3700488"]
[WhiteElo "2432"]
[BlackElo "2587"]
[Result "0-1"]
[Round "07"]
[TimeControl "180+1"]
[Date "2022.03.22"]
[WhiteClock "0:00:01"]
[BlackClock "0:00:01"]

1. e4 {[%clk 0:03:00]}  c5 {[%clk 0:02:59]} 2. Nf3 {[%clk 0:03:00]}  d6 {[%clk 0:03:00]} 3. Bb5+ {[%clk 0:03:00]}  Nd7 {[%clk 0:02:58]} 4. O-O {[%clk 0:02:59]}  a6 {[%clk 0:02:56]} 5. Bd3 {[%clk 0:02:58]}  Ngf6 {[%clk 0:02:55]} 6. Re1 {[%clk 0:02:57]}  e6 {[%clk 0:02:53]} 7. c3 {[%clk 0:02:55]}  b5 {[%clk 0:02:52]} 8. a4 {[%clk 0:02:55]}  Bb7 {[%clk 0:02:50]} 9. axb5 {[%clk 0:02:38]}  axb5 {[%clk 0:02:51]} 10. Rxa8 {[%clk 0:02:37]}  Qxa8 {[%clk 0:02:51]} 11. Na3 {[%clk 0:02:26]}  b4 {[%clk 0:02:41]} 12. Nb5 {[%clk 0:02:21]}  Qb8 {[%clk 0:02:16]} 13. Qa4 {[%clk 0:02:07]}  bxc3 {[%clk 0:01:56]} 14. bxc3 {[%clk 0:02:03]}  Be7 {[%clk 0:01:54]} 15. Bc2 {[%clk 0:00:52]}  O-O {[%clk 0:01:51]} 16. d4 {[%clk 0:00:52]}  cxd4 {[%clk 0:01:40]} 17. cxd4 {[%clk 0:00:53]}  e5 {[%clk 0:01:39]} 18. Ba3 {[%clk 0:00:42]}  Bc6 {[%clk 0:01:28]} 19. Rb1 {[%clk 0:00:39]}  Nxe4 {[%clk 0:00:49]} 20. dxe5 {[%clk 0:00:22]}  Nc3 {[%clk 0:00:26]} 21. Bxh7+ {[%clk 0:00:11]}  Kxh7 {[%clk 0:00:20]} 22. Qc2+ {[%clk 0:00:10]}  Be4 {[%clk 0:00:20]} 23. Qxc3 {[%clk 0:00:10]}  Bxb1 {[%clk 0:00:20]} 24. exd6 {[%clk 0:00:09]}  Bf6 {[%clk 0:00:16]} 25. Qb3 {[%clk 0:00:07]}  Bg6 {[%clk 0:00:14]} 26. h4 {[%clk 0:00:04]}  Re8 {[%clk 0:00:11]} 27. Ng5+ {[%clk 0:00:04]}  Bxg5 {[%clk 0:00:10]} 28. hxg5 {[%clk 0:00:05]}  Re5 {[%clk 0:00:09]} 29. Qh3+ {[%clk 0:00:01]}  Kg8 {[%clk 0:00:09]} 30. Qxd7 {[%clk 0:00:02]}  Rxb5 {[%clk 0:00:07]} 31. Qc7 {[%clk 0:00:01]}  Rb1+ {[%clk 0:00:04]} 32. Kh2 {[%clk 0:00:01]}  Qa8 {[%clk 0:00:01]} 0-1


[Site "https://www.chess.com"]

[Event "Titled Tuesday Blitz March 22 Early 2022"]
[White "Migot, Tangi"]
[Black "Maltsevskaya, Aleksandra"]
[WhiteFideId "662445"]
[BlackFideId "24174041"]
[WhiteElo "2504"]
[BlackElo "2241"]
[Result "1-0"]
[Round "07"]
[TimeControl "180+1"]
[Date "2022.03.22"]
[WhiteClock "0:00:19"]
[BlackClock "0:00:03"]

1. d4 {[%clk 0:03:00]}  c5 {[%clk 0:03:00]} 2. d5 {[%clk 0:03:00]}  Nf6 {[%clk 0:03:01]} 3. c4 {[%clk 0:03:00]}  g6 {[%clk 0:03:00]} 4. Nc3 {[%clk 0:03:00]}  Bg7 {[%clk 0:03:00]} 5. e4 {[%clk 0:03:00]}  O-O {[%clk 0:03:01]} 6. Bd3 {[%clk 0:03:01]}  e6 {[%clk 0:03:01]} 7. h3 {[%clk 0:03:01]}  exd5 {[%clk 0:03:02]} 8. exd5 {[%clk 0:03:00]}  a6 {[%clk 0:03:01]} 9. a4 {[%clk 0:02:59]}  d6 {[%clk 0:03:00]} 10. Nge2 {[%clk 0:02:58]}  Re8 {[%clk 0:03:01]} 11. O-O {[%clk 0:02:58]}  Nbd7 {[%clk 0:03:01]} 12. f4 {[%clk 0:02:58]}  Rb8 {[%clk 0:02:59]} 13. g4 {[%clk 0:02:54]}  b5 {[%clk 0:02:57]} 14. axb5 {[%clk 0:02:53]}  axb5 {[%clk 0:02:58]} 15. Nxb5 {[%clk 0:02:53]}  Nb6 {[%clk 0:02:54]} 16. Ra7 {[%clk 0:02:49]}  Ne4 {[%clk 0:02:39]} 17. Qc2 {[%clk 0:02:30]}  f5 {[%clk 0:02:37]} 18. g5 {[%clk 0:02:30]}  Re7 {[%clk 0:01:58]} 19. Kg2 {[%clk 0:02:11]}  Bd7 {[%clk 0:01:55]} 20. Nbc3 {[%clk 0:02:04]}  Ra8 {[%clk 0:01:34]} 21. Rxa8 {[%clk 0:01:58]}  Qxa8 {[%clk 0:01:35]} 22. Ng3 {[%clk 0:01:48]}  Nxc3 {[%clk 0:01:32]} 23. bxc3 {[%clk 0:01:48]}  Ba4 {[%clk 0:01:26]} 24. Qb2 {[%clk 0:01:43]}  Qa6 {[%clk 0:00:54]} 25. Qa2 {[%clk 0:01:01]}  Ra7 {[%clk 0:00:44]} 26. Qe2 {[%clk 0:01:01]}  Ra8 {[%clk 0:00:33]} 27. Qe6+ {[%clk 0:00:59]}  Kh8 {[%clk 0:00:32]} 28. Qxd6 {[%clk 0:00:59]}  Bb3 {[%clk 0:00:21]} 29. Qxc5 {[%clk 0:00:37]}  Bxc4 {[%clk 0:00:18]} 30. Bxc4 {[%clk 0:00:36]}  Nxc4 {[%clk 0:00:19]} 31. Rf2 {[%clk 0:00:21]}  Rc8 {[%clk 0:00:17]} 32. Qb4 {[%clk 0:00:21]}  Qa8 {[%clk 0:00:16]} 33. Qb5 {[%clk 0:00:19]}  Nd6 {[%clk 0:00:10]} 34. Qd3 {[%clk 0:00:19]}  Rxc3 {[%clk 0:00:09]} 35. Qd1 {[%clk 0:00:19]}  Rxg3+ {[%clk 0:00:04]} 36. Kxg3 {[%clk 0:00:18]}  Ne4+ {[%clk 0:00:05]} 37. Kg2 {[%clk 0:00:19]}  Nxf2 {[%clk 0:00:04]} 38. Kxf2 {[%clk 0:00:20]}  Qa2+ {[%clk 0:00:04]} 39. Kg3 {[%clk 0:00:19]}  Qc4 {[%clk 0:00:03]} 40. Be3 {[%clk 0:00:18]}  Qc3 {[%clk 0:00:03]} 41. Kf3 {[%clk 0:00:18]}  Qc4 {[%clk 0:00:03]} 42. d6 {[%clk 0:00:18]}  Qe4+ {[%clk 0:00:04]} 43. Kf2 {[%clk 0:00:19]}  Qe8 {[%clk 0:00:03]} 44. d7 {[%clk 0:00:19]}  Qd8 {[%clk 0:00:03]} 45. Kg3 {[%clk 0:00:19]}  Kg8 {[%clk 0:00:03]} 46. Bb6 {[%clk 0:00:19]} 1-0


[Site "https://www.chess.com"]

[Event "Titled Tuesday Blitz March 22 Early 2022"]
[White "Mirzanurov, Bulat"]
[Black "Horcajuelo Rocamora, Martin"]
[WhiteFideId "4184521"]
[BlackFideId "24573027"]
[WhiteElo "2116"]
[BlackElo "1706"]
[Result "1-0"]
[Round "07"]
[TimeControl "180+1"]
[Date "2022.03.22"]
[WhiteClock "0:00:22"]
[BlackClock "0:00:15"]

1. e4 {[%clk 0:03:00]}  e5 {[%clk 0:02:57]} 2. Nf3 {[%clk 0:03:00]}  Nc6 {[%clk 0:02:50]} 3. Bc4 {[%clk 0:03:00]}  Nf6 {[%clk 0:02:47]} 4. d3 {[%clk 0:03:00]}  Bc5 {[%clk 0:02:43]} 5. O-O {[%clk 0:02:58]}  d6 {[%clk 0:02:42]} 6. c3 {[%clk 0:02:58]}  O-O {[%clk 0:02:39]} 7. Nbd2 {[%clk 0:02:57]}  a6 {[%clk 0:02:21]} 8. Bb3 {[%clk 0:02:56]}  Ne7 {[%clk 0:02:16]} 9. Re1 {[%clk 0:02:50]}  Be6 {[%clk 0:02:04]} 10. d4 {[%clk 0:02:45]}  exd4 {[%clk 0:01:56]} 11. cxd4 {[%clk 0:02:45]}  Bb4 {[%clk 0:01:56]} 12. Bxe6 {[%clk 0:02:43]}  fxe6 {[%clk 0:01:37]} 13. Qb3 {[%clk 0:02:43]}  Bxd2 {[%clk 0:01:36]} 14. Qxe6+ {[%clk 0:02:42]}  Kh8 {[%clk 0:01:37]} 15. Bxd2 {[%clk 0:02:43]}  Nc6 {[%clk 0:01:33]} 16. Bc3 {[%clk 0:02:18]}  Re8 {[%clk 0:01:26]} 17. Qf5 {[%clk 0:02:18]}  Qc8 {[%clk 0:01:24]} 18. Qf4 {[%clk 0:02:03]}  Qg4 {[%clk 0:01:11]} 19. Qxg4 {[%clk 0:01:59]}  Nxg4 {[%clk 0:01:12]} 20. h3 {[%clk 0:01:55]}  Nf6 {[%clk 0:01:09]} 21. e5 {[%clk 0:01:41]}  dxe5 {[%clk 0:00:49]} 22. dxe5 {[%clk 0:01:42]}  Nd5 {[%clk 0:00:48]} 23. Rad1 {[%clk 0:01:35]}  Nce7 {[%clk 0:00:47]} 24. e6 {[%clk 0:01:27]}  c6 {[%clk 0:00:39]} 25. Ne5 {[%clk 0:01:19]}  Nxc3 {[%clk 0:00:22]} 26. bxc3 {[%clk 0:01:18]}  Nd5 {[%clk 0:00:23]} 27. c4 {[%clk 0:01:16]}  Nf6 {[%clk 0:00:20]} 28. g4 {[%clk 0:01:07]}  Kg8 {[%clk 0:00:19]} 29. g5 {[%clk 0:01:00]}  Nh5 {[%clk 0:00:19]} 30. Nd3 {[%clk 0:00:38]}  Rad8 {[%clk 0:00:18]} 31. f4 {[%clk 0:00:37]}  g6 {[%clk 0:00:16]} 32. Kg2 {[%clk 0:00:34]}  Rd4 {[%clk 0:00:15]} 33. Kf3 {[%clk 0:00:30]}  Kf8 {[%clk 0:00:15]} 34. Re4 {[%clk 0:00:28]}  Rxe4 {[%clk 0:00:12]} 35. Kxe4 {[%clk 0:00:29]}  Rxe6+ {[%clk 0:00:12]} 36. Kd4 {[%clk 0:00:29]}  Rd6+ {[%clk 0:00:12]} 37. Kc5 {[%clk 0:00:29]}  Rd7 {[%clk 0:00:12]} 38. Kb6 {[%clk 0:00:24]}  Kg7 {[%clk 0:00:11]} 39. c5 {[%clk 0:00:22]}  Nxf4 {[%clk 0:00:10]} 40. Nf2 {[%clk 0:00:22]}  Nd5+ {[%clk 0:00:09]} 41. Ka7 {[%clk 0:00:20]}  h6 {[%clk 0:00:09]} 42. Ne4 {[%clk 0:00:20]}  hxg5 {[%clk 0:00:08]} 43. Nxg5 {[%clk 0:00:21]}  Rf7 {[%clk 0:00:08]} 44. Ne6+ {[%clk 0:00:21]}  Kf6 {[%clk 0:00:08]} 45. Nd8 {[%clk 0:00:19]}  Rd7 {[%clk 0:00:08]} 46. Nxb7 {[%clk 0:00:19]}  a5 {[%clk 0:00:09]} 47. Rf1+ {[%clk 0:00:19]}  Kg5 {[%clk 0:00:09]} 48. Rb1 {[%clk 0:00:18]}  Nb4 {[%clk 0:00:08]} 49. a3 {[%clk 0:00:18]}  Nd5 {[%clk 0:00:08]} 50. Rb6 {[%clk 0:00:18]}  Nxb6 {[%clk 0:00:07]} 51. cxb6 {[%clk 0:00:18]}  Kh4 {[%clk 0:00:07]} 52. Ka6 {[%clk 0:00:19]}  Kxh3 {[%clk 0:00:07]} 53. Nc5 {[%clk 0:00:20]}  Rg7 {[%clk 0:00:06]} 54. b7 {[%clk 0:00:20]}  Rxb7 {[%clk 0:00:07]} 55. Kxb7 {[%clk 0:00:20]}  g5 {[%clk 0:00:08]} 56. Kxc6 {[%clk 0:00:20]}  g4 {[%clk 0:00:09]} 57. Ne4 {[%clk 0:00:20]}  g3 {[%clk 0:00:09]} 58. Nxg3 {[%clk 0:00:19]}  Kxg3 {[%clk 0:00:10]} 59. Kb6 {[%clk 0:00:19]}  Kf4 {[%clk 0:00:11]} 60. Kxa5 {[%clk 0:00:20]}  Ke5 {[%clk 0:00:12]} 61. Kb6 {[%clk 0:00:21]}  Kd6 {[%clk 0:00:12]} 62. a4 {[%clk 0:00:21]}  Kd7 {[%clk 0:00:13]} 63. Kb7 {[%clk 0:00:22]}  Kd6 {[%clk 0:00:13]} 64. a5 {[%clk 0:00:22]}  Kc5 {[%clk 0:00:14]} 65. a6 {[%clk 0:00:22]}  Kb5 {[%clk 0:00:15]} 1-0


[Site "https://www.chess.com"]

[Event "Titled Tuesday Blitz March 22 Early 2022"]
[White "Molina, Roberto Junio Brito"]
[Black "Le Ruyet, Leopold"]
[WhiteFideId "2109450"]
[BlackFideId "645923"]
[WhiteElo "2432"]
[BlackElo "2276"]
[Result "1/2-1/2"]
[Round "07"]
[TimeControl "180+1"]
[Date "2022.03.22"]
[WhiteClock "0:00:23"]
[BlackClock "0:00:09"]

1. d4 {[%clk 0:03:00]}  d5 {[%clk 0:02:58]} 2. e3 {[%clk 0:02:59]}  c5 {[%clk 0:02:57]} 3. Nf3 {[%clk 0:03:00]}  cxd4 {[%clk 0:02:57]} 4. exd4 {[%clk 0:03:00]}  Nc6 {[%clk 0:02:57]} 5. Bd3 {[%clk 0:03:00]}  g6 {[%clk 0:02:57]} 6. c3 {[%clk 0:02:59]}  Bg7 {[%clk 0:02:57]} 7. Bf4 {[%clk 0:03:00]}  Nh6 {[%clk 0:02:58]} 8. Nbd2 {[%clk 0:02:59]}  O-O {[%clk 0:02:57]} 9. O-O {[%clk 0:02:59]}  f6 {[%clk 0:02:58]} 10. Re1 {[%clk 0:02:58]}  Nf7 {[%clk 0:02:58]} 11. Bg3 {[%clk 0:02:52]}  e5 {[%clk 0:02:57]} 12. dxe5 {[%clk 0:02:51]}  fxe5 {[%clk 0:02:58]} 13. Bc2 {[%clk 0:02:49]}  e4 {[%clk 0:02:57]} 14. Nxe4 {[%clk 0:02:34]}  dxe4 {[%clk 0:02:56]} 15. Bxe4 {[%clk 0:02:35]}  Qxd1 {[%clk 0:02:54]} 16. Raxd1 {[%clk 0:02:36]}  Bg4 {[%clk 0:02:52]} 17. h3 {[%clk 0:02:36]}  Bxf3 {[%clk 0:02:51]} 18. Bxf3 {[%clk 0:02:37]}  Rfd8 {[%clk 0:02:49]} 19. Bc7 {[%clk 0:02:31]}  Rxd1 {[%clk 0:02:47]} 20. Rxd1 {[%clk 0:02:32]}  Nfe5 {[%clk 0:02:28]} 21. Bxe5 {[%clk 0:02:29]}  Nxe5 {[%clk 0:02:26]} 22. Bxb7 {[%clk 0:02:27]}  Rb8 {[%clk 0:02:23]} 23. Bd5+ {[%clk 0:02:27]}  Kf8 {[%clk 0:02:23]} 24. b3 {[%clk 0:02:22]}  Rd8 {[%clk 0:02:16]} 25. c4 {[%clk 0:02:21]}  Nc6 {[%clk 0:02:09]} 26. Rd3 {[%clk 0:02:21]}  Nb4 {[%clk 0:02:06]} 27. Rf3+ {[%clk 0:02:19]}  Ke8 {[%clk 0:02:03]} 28. Rf7 {[%clk 0:02:14]}  Bd4 {[%clk 0:01:57]} 29. Rxh7 {[%clk 0:02:11]}  Nxd5 {[%clk 0:01:54]} 30. cxd5 {[%clk 0:02:12]}  Rxd5 {[%clk 0:01:53]} 31. Rc7 {[%clk 0:01:56]}  Rf5 {[%clk 0:01:40]} 32. Rc2 {[%clk 0:01:55]}  Ke7 {[%clk 0:01:39]} 33. g3 {[%clk 0:01:53]}  Kd6 {[%clk 0:01:36]} 34. Kg2 {[%clk 0:01:52]}  Kd5 {[%clk 0:01:36]} 35. f4 {[%clk 0:01:50]}  Rf7 {[%clk 0:01:35]} 36. h4 {[%clk 0:01:43]}  Re7 {[%clk 0:01:33]} 37. Kf3 {[%clk 0:01:39]}  Re3+ {[%clk 0:01:28]} 38. Kg4 {[%clk 0:01:39]}  Rd3 {[%clk 0:01:26]} 39. Rg2 {[%clk 0:01:34]}  Bf6 {[%clk 0:01:24]} 40. h5 {[%clk 0:01:32]}  gxh5+ {[%clk 0:01:23]} 41. Kxh5 {[%clk 0:01:33]}  Ke4 {[%clk 0:01:22]} 42. Kg4 {[%clk 0:01:32]}  Rd8 {[%clk 0:01:21]} 43. Re2+ {[%clk 0:01:31]}  Kd3 {[%clk 0:01:18]} 44. Re6 {[%clk 0:01:30]}  Bd4 {[%clk 0:01:18]} 45. Kf3 {[%clk 0:01:27]}  Rh8 {[%clk 0:01:12]} 46. g4 {[%clk 0:01:25]}  Rh1 {[%clk 0:01:11]} 47. g5 {[%clk 0:01:25]}  Rf1+ {[%clk 0:01:08]} 48. Kg4 {[%clk 0:01:25]}  Rg1+ {[%clk 0:01:07]} 49. Kf5 {[%clk 0:01:08]}  Be3 {[%clk 0:01:07]} 50. Re4 {[%clk 0:00:58]}  Rg2 {[%clk 0:01:01]} 51. Ra4 {[%clk 0:00:56]}  Bd4 {[%clk 0:00:56]} 52. g6 {[%clk 0:00:55]}  Ke3 {[%clk 0:00:54]} 53. Ra6 {[%clk 0:00:27]}  Bb6 {[%clk 0:00:49]} 54. Ra4 {[%clk 0:00:21]}  Bd4 {[%clk 0:00:49]} 55. Rc4 {[%clk 0:00:20]}  Rf2 {[%clk 0:00:47]} 56. Rxd4 {[%clk 0:00:18]}  Kxd4 {[%clk 0:00:46]} 57. g7 {[%clk 0:00:19]}  Rg2 {[%clk 0:00:45]} 58. Kf6 {[%clk 0:00:19]}  Ke4 {[%clk 0:00:14]} 59. f5 {[%clk 0:00:19]}  Rxg7 {[%clk 0:00:14]} 60. Kxg7 {[%clk 0:00:19]}  Kxf5 {[%clk 0:00:15]} 61. Kf7 {[%clk 0:00:20]}  Ke4 {[%clk 0:00:15]} 62. Ke6 {[%clk 0:00:20]}  Kd4 {[%clk 0:00:15]} 63. Kd6 {[%clk 0:00:20]}  Kc3 {[%clk 0:00:15]} 64. Kc5 {[%clk 0:00:20]}  Kb2 {[%clk 0:00:13]} 65. Kb5 {[%clk 0:00:20]}  Kxa2 {[%clk 0:00:13]} 66. b4 {[%clk 0:00:20]}  Kb3 {[%clk 0:00:13]} 67. Ka5 {[%clk 0:00:21]}  a6 {[%clk 0:00:10]} 68. b5 {[%clk 0:00:22]}  axb5 {[%clk 0:00:09]} 69. Kxb5 {[%clk 0:00:23]} 1/2-1/2


[Site "https://www.chess.com"]

[Event "Titled Tuesday Blitz March 22 Early 2022"]
[White "Namitbir Singh Walia"]
[Black "Przybylski, Wojciech"]
[WhiteFideId "35071068"]
[BlackFideId "1117599"]
[WhiteElo "1565"]
[BlackElo "2133"]
[Result "0-1"]
[Round "07"]
[TimeControl "180+1"]
[Date "2022.03.22"]
[WhiteClock "0:00:07"]
[BlackClock "0:00:57"]

1. d4 {[%clk 0:03:00]}  Nf6 {[%clk 0:02:59]} 2. c4 {[%clk 0:02:59]}  e6 {[%clk 0:02:59]} 3. g3 {[%clk 0:02:59]}  Be7 {[%clk 0:02:58]} 4. Bg2 {[%clk 0:02:59]}  O-O {[%clk 0:02:58]} 5. Nf3 {[%clk 0:03:00]}  d5 {[%clk 0:02:57]} 6. O-O {[%clk 0:02:59]}  Nbd7 {[%clk 0:02:57]} 7. Qc2 {[%clk 0:02:58]}  c6 {[%clk 0:02:56]} 8. b3 {[%clk 0:02:51]}  b6 {[%clk 0:02:55]} 9. Bb2 {[%clk 0:02:51]}  Bb7 {[%clk 0:02:55]} 10. Nbd2 {[%clk 0:02:52]}  Rc8 {[%clk 0:02:55]} 11. Ne5 {[%clk 0:02:30]}  c5 {[%clk 0:02:52]} 12. e3 {[%clk 0:02:28]}  Qc7 {[%clk 0:02:46]} 13. Rac1 {[%clk 0:02:18]}  Nxe5 {[%clk 0:02:38]} 14. dxe5 {[%clk 0:02:18]}  Nd7 {[%clk 0:02:38]} 15. f4 {[%clk 0:02:14]}  Bc6 {[%clk 0:02:28]} 16. cxd5 {[%clk 0:01:39]}  Bxd5 {[%clk 0:02:24]} 17. Bxd5 {[%clk 0:01:39]}  exd5 {[%clk 0:02:24]} 18. Nf3 {[%clk 0:01:37]}  Rfd8 {[%clk 0:02:14]} 19. Rfd1 {[%clk 0:01:36]}  Nf8 {[%clk 0:02:09]} 20. Qc3 {[%clk 0:01:11]}  f6 {[%clk 0:02:06]} 21. a4 {[%clk 0:00:46]}  Qd7 {[%clk 0:02:03]} 22. Qc2 {[%clk 0:00:29]}  a6 {[%clk 0:01:41]} 23. exf6 {[%clk 0:00:29]}  Bxf6 {[%clk 0:01:36]} 24. Bxf6 {[%clk 0:00:27]}  gxf6 {[%clk 0:01:36]} 25. Qg2 {[%clk 0:00:23]}  Qe6 {[%clk 0:01:34]} 26. Qf2 {[%clk 0:00:23]}  b5 {[%clk 0:01:32]} 27. axb5 {[%clk 0:00:22]}  axb5 {[%clk 0:01:31]} 28. Nh4 {[%clk 0:00:22]}  Re8 {[%clk 0:01:28]} 29. Ng2 {[%clk 0:00:21]}  Qe4 {[%clk 0:01:26]} 30. Qe2 {[%clk 0:00:19]}  c4 {[%clk 0:01:22]} 31. bxc4 {[%clk 0:00:19]}  dxc4 {[%clk 0:01:20]} 32. Rd4 {[%clk 0:00:18]}  Qe6 {[%clk 0:01:12]} 33. Rcd1 {[%clk 0:00:17]}  b4 {[%clk 0:01:10]} 34. f5 {[%clk 0:00:15]}  Qf7 {[%clk 0:01:08]} 35. Nf4 {[%clk 0:00:15]}  b3 {[%clk 0:01:07]} 36. Qg4+ {[%clk 0:00:12]}  Kh8 {[%clk 0:01:06]} 37. Ne6 {[%clk 0:00:11]}  c3 {[%clk 0:01:00]} 38. Nxf8 {[%clk 0:00:09]}  Rxf8 {[%clk 0:01:00]} 39. R4d2 {[%clk 0:00:07]}  cxd2 {[%clk 0:00:57]} 0-1


[Site "https://www.chess.com"]